fUSD/lending_fUSD_20250526
["ID","MTS","AMOUNT","RATE_DAILY","PERIOD"]
[362398510,1748251848299,-420.0,0.00019999,2]
[362398511,1748251848308,-420.0,0.00019999,2]
[362398512,1748251848318,-420.0,0.00019999,2]
[362398513,1748251848327,-420.0,0.00019999,2]
[362398514,1748251848337,-231.92,0.00019999,2]
[362398515,1748251848347,-420.11044996,0.00019999,2]
[362398516,1748251848356,-423.94,0.00019999,2]
[362398517,1748251848366,-420.0,0.00019999,2]
[362398518,1748251848376,-270.88372736,0.00019999,2]
[362398519,1748251848387,-425.25642512,0.00019999,2]
[362398520,1748251848397,-376.75892456,0.00019999,2]
[362398521,1748251848406,-420.0,0.00019999,2]
[362398522,1748251848416,-441.48788288,0.00019999,2]
[362398523,1748251848426,-252.78,0.00019999,2]
[362398524,1748251848436,-423.54110966,0.00019999,2]
[362398525,1748251848446,-3021.39,0.00019999,2]
[362398526,1748251848456,-3021.39,0.00019999,2]
[362398527,1748251848465,-3021.39,0.00019999,2]
[362398528,1748251848476,-420.0,0.00019999,2]
[362398529,1748251848486,-3021.39,0.00019999,2]
[362398530,1748251848495,-420.0,0.00019999,2]
[362398531,1748251848506,-3021.39,0.00019999,2]
[362398532,1748251848516,-420.0,0.00019999,2]
[362398533,1748251848525,-3021.39,0.00019999,2]
[362398534,1748251848535,-420.0,0.00019999,2]
[362398535,1748251848545,-3021.39,0.00019999,2]
[362398536,1748251848555,-276.16,0.00019999,2]
[362398537,1748251848564,-3021.39,0.00019999,2]
[362398538,1748251848574,-3021.39,0.00019999,2]
[362398539,1748251848583,-3021.39,0.00019999,2]
[362398540,1748251848593,-3021.39,0.00019999,2]
[362398541,1748251848603,-420.0,0.00019999,2]
[362398542,1748251848612,-3021.39,0.00019999,2]
[362398543,1748251848622,-420.0,0.00019999,2]
[362398544,1748251848631,-3021.39,0.00019999,2]
[362398545,1748251848641,-286.97,0.00019999,2]
[362398546,1748251848650,-3021.39,0.00019999,2]
[362398547,1748251848663,-3021.39,0.00019999,2]
[362398548,1748251848673,-3021.39,0.00019999,2]
[362398549,1748251848683,-420.0,0.00019999,2]
[362398550,1748251848693,-3021.39,0.00019999,2]
[362398551,1748251848703,-420.0,0.00019999,2]
[362398552,1748251848713,-2454.16432403,0.00019999,2]
[362398553,1748251848727,-567.22567597,0.00019999,2]
[362398554,1748251848737,-291.68,0.00019999,2]
[362398555,1748251848748,-3021.39,0.00019999,2]
[362398556,1748251848759,-3021.39,0.00019999,2]
[362398557,1748251848770,-3021.39,0.00019999,2]
[362398558,1748251848780,-3021.57,0.00019999,2]
[362398559,1748251848790,-354.42,0.00019999,2]
[362398560,1748251848801,-432.3,0.00019999,2]
[362398561,1748251848812,-432.3,0.00019999,2]
[362398562,1748251848823,-432.3,0.00019999,2]
[362398563,1748251848833,-432.3,0.00019999,2]
[362398564,1748251848843,-432.3,0.00019999,2]
[362398565,1748251848854,-432.3,0.00019999,2]
[362398566,1748251848863,-420.0,0.00019999,2]
[362398567,1748251848873,-242.06,0.00019999,2]
[362398568,1748251848882,-432.3,0.00019999,2]
[362398569,1748251848892,-432.3,0.00019999,2]
[362398570,1748251848901,-432.3,0.00019999,2]
[362398571,1748251848911,-432.3,0.00019999,2]
[362398572,1748251848921,-432.3,0.00019999,2]
[362398573,1748251848931,-432.3,0.00019999,2]
[362398574,1748251848942,-420.0,0.00019999,2]
[362398575,1748251848952,-432.3,0.00019999,2]
[362398576,1748251848962,-420.0,0.00019999,2]
[362398577,1748251848972,-432.3,0.00019999,2]
[362398578,1748251848982,-564.74,0.00019999,2]
[362398579,1748251848992,-432.3,0.00019999,2]
[362398580,1748251849001,-432.3,0.00019999,2]
[362398581,1748251849012,-432.3,0.00019999,2]
[362398582,1748251849022,-432.3,0.00019999,2]
[362398583,1748251849032,-432.3,0.00019999,2]
[362398584,1748251849043,-432.3,0.00019999,2]
[362398585,1748251849053,-432.3,0.00019999,2]
[362398586,1748251849062,-432.3,0.00019999,2]
[362398587,1748251849072,-432.3,0.00019999,2]
[362398588,1748251849082,-420.0,0.00019999,2]
[362398589,1748251849092,-420.0,0.00019999,2]
[362398590,1748251849103,-420.0,0.00019999,2]
[362398591,1748251849113,-420.0,0.00019999,2]
[362398592,1748251849123,-420.0,0.00019999,2]
[362398593,1748251849134,-420.0,0.00019999,2]
[362398594,1748251849143,-150.3,0.00019999,2]
[362398595,1748251849153,-484.96,0.00019999,2]
[362398596,1748251849163,-420.0,0.00019999,2]
[362398597,1748251849174,-420.0,0.00019999,2]
[362398598,1748251849184,-420.0,0.00019999,2]
[362398599,1748251849194,-420.0,0.00019999,2]
[362398600,1748251849204,-420.0,0.00019999,2]
[362398601,1748251849214,-420.0,0.00019999,2]
[362398602,1748251849224,-420.0,0.00019999,2]
[362398603,1748251849234,-354.04,0.00019999,2]
[362398604,1748251849244,-420.0,0.00019999,2]
[362398605,1748251849254,-420.0,0.00019999,2]
[362398606,1748251849265,-246.99,0.00019999,2]
[362398607,1748251849275,-422.14072644,0.00019999,2]
[362398608,1748251849286,-420.0,0.00019999,2]
[362398609,1748251849295,-420.0,0.00019999,2]
[362398610,1748251849306,-420.0,0.00019999,2]
[362398611,1748251849511,-420.0,0.00019999,2]
[362398612,1748251849521,-420.0,0.00019999,2]
[362398613,1748251849531,-420.0,0.00019999,2]
[362398614,1748251849541,-274.05,0.00019999,2]
[362398615,1748251849550,-420.0,0.00019999,2]
[362398616,1748251849559,-420.0,0.00019999,2]
[362398617,1748251849568,-420.0,0.00019999,2]
[362398618,1748251849578,-172.76,0.00019999,2]
[362398619,1748251849587,-420.0,0.00019999,2]
[362398620,1748251849597,-314.6,0.00019999,2]
[362398621,1748251849606,-12500.0,0.00019999,2]
[362398622,1748251849615,-494.14,0.00019999,2]
[362398623,1748251849624,-2000.0,0.00019999,2]
[362398624,1748251849633,-420.0,0.00019999,2]
[362398625,1748251849642,-420.0,0.00019999,2]
[362398626,1748251849649,-420.0,0.00019999,2]
[362398627,1748251849658,-293.59,0.00019999,2]
[362398628,1748251849668,-400.0,0.00019999,2]
[362398629,1748251849676,-420.0,0.00019999,2]
[362398630,1748251849684,-420.0,0.00019999,2]
[362398631,1748251849691,-431.38155499,0.00019999,2]
[362398632,1748251849699,-439.69,0.00019999,2]
[362398633,1748251849708,-420.0,0.00019999,2]
[362398634,1748251849716,-272.0,0.00019999,2]
[362398635,1748251849724,-420.0,0.00019999,2]
[362398636,1748251849732,-420.0,0.00019999,2]
[362398637,1748251849741,-372.08009247,0.00019999,2]
[362398638,1748251849750,-544.26541276,0.00019999,2]
[362398639,1748251849760,-420.0,0.00019999,2]
[362398640,1748251849769,-348.90647629,0.00019999,2]
[362398641,1748251849778,-420.0,0.00019999,2]
[362398642,1748251849788,-322.57,0.00019999,2]
[362398643,1748251849798,-420.0,0.00019999,2]
[362398644,1748251849807,-384.92882963,0.00019999,2]
[362398645,1748251849816,-435.20013448,0.00019999,2]
[362398646,1748251849825,-159.41,0.00019999,2]
[362398647,1748251849834,-420.0,0.00019999,2]
[362398648,1748251849843,-420.0,0.00019999,2]
[362398649,1748251849852,-420.0,0.00019999,2]
[362398650,1748251849862,-420.0,0.00019999,2]
[362398651,1748251849870,-420.0,0.00019999,2]
[362398652,1748251849880,-362.17,0.00019999,2]
[362398653,1748251849889,-302092.88233379,0.00019999,3]
[362398654,1748251849897,-459361.45145582,0.0002,2]
[362398655,1748251849914,-842.26145612,0.0002,2]
[362398656,1748251849925,-129641.39809038,0.0002,2]
[362398657,1748251850051,-420.0,0.00019995,2]
[362398658,1748251850062,-416.38630107,0.00019995,2]
[362398659,1748251850075,-3.61369893,0.00019995,2]
[362398660,1748251850085,-51414.41524387,0.0002,2]
[362398661,1748251850097,-1017.23664786,0.0002,2]
[362398662,1748251850108,-1994.53838241,0.0002,2]
[362398663,1748251850122,-888.9,0.0002,2]
[362398664,1748251850133,-450.0,0.0002,2]
[362398665,1748251850148,-50407.4686693,0.0002,2]
[362398666,1748251850158,-27414.99719374,0.0002,2]
[362398667,1748251850169,-1170.8894453,0.0002,2]
[362398668,1748251850180,-760.90077994,0.0002,2]
[362398672,1748252024671,150.0,1e-08,2]
[362398675,1748252105336,200.9,0.00025,60]
[362398676,1748252138466,5219.14,0.00013699,2]
[362398677,1748252138860,5219.14,0.00013699,2]
[362398678,1748252139155,5219.14,0.00013699,2]
[362398679,1748252139559,194.75367083,0.00013699,2]
[362398680,1748252139582,5024.38632917,0.00013699,2]
[362398681,1748252139892,5219.14,0.00013699,2]
[362398682,1748252140283,5219.14,0.00013699,2]
[362398683,1748252140621,5219.14,0.00013699,2]
[362398684,1748252140975,5219.14,0.00013699,2]
[362398685,1748252141470,5219.14,0.00013699,2]
[362398686,1748252141873,5219.14,0.00013699,2]
[362398687,1748252142216,1951.0382469,0.00013699,2]
[362398688,1748252142243,3268.1017531,0.00013699,2]
[362398689,1748252142542,5219.14,0.00013699,2]
[362398690,1748252142998,152.07869734,0.00013699,2]
[362398691,1748252143020,5067.06130266,0.00013699,2]
[362398692,1748252143363,5219.14,0.00013699,2]
[362398693,1748252143806,5219.14,0.00013699,2]
[362398694,1748252144152,5219.14,0.00013699,2]
[362398695,1748252144604,5219.14,0.00013699,2]
[362398696,1748252144981,5219.14,0.00013699,2]
[362398697,1748252145362,5219.14,0.00013699,2]
[362398698,1748252146288,5219.16045512,0.00013699,2]
[362398699,1748252199339,-2129.95204288,0.00041498,60]
[362398700,1748252199369,-376.90110164,0.00041498,120]
[362398701,1748252199393,-3332.81164911,0.00041498,120]
[362398702,1748252199418,-1264.3263391,0.00041498,91]
[362398703,1748252199442,-2863.51069803,0.00041498,120]
[362398704,1748252199466,-3115.37968214,0.00041498,120]
[362398705,1748252199490,-841.67099156,0.00041498,120]
[362398706,1748252199514,-1471.6808436,0.00041498,120]
[362398707,1748252199538,-2411.52323788,0.00041498,120]
[362398708,1748252199562,-605.24992829,0.00041498,120]
[362398709,1748252199586,-515.60211235,0.00041498,120]
[362398710,1748252199611,-368.94935298,0.00041498,120]
[362398711,1748252199635,-865.46705197,0.00041498,120]
[362398712,1748252199659,-701.8915658,0.00041498,120]
[362398713,1748252199682,-153.67992019,0.00041498,60]
[362398714,1748252199706,-6370.07523969,0.00041498,120]
[362398715,1748252199730,-1863.66672217,0.00041498,90]
[362398716,1748252199754,-194.11801774,0.00041498,120]
[362398717,1748252199777,-1151.56397507,0.00041498,120]
[362398718,1748252199803,-1000.15841849,0.00041498,120]
[362398719,1748252199826,-227.57235592,0.00041498,120]
[362398720,1748252199850,-204.36815969,0.00041498,60]
[362398721,1748252199875,-165.93951775,0.00041498,120]
[362398722,1748252199899,-2127.5437184,0.00041498,120]
[362398723,1748252199923,-820.20387342,0.00041498,120]
[362398724,1748252199946,-2245.92424015,0.00041498,120]
[362398725,1748252199971,-812.9382129,0.00041498,120]
[362398726,1748252199995,-791.61650315,0.00041498,120]
[362398727,1748252200018,-694.0732061,0.00041498,120]
[362398728,1748252200042,-186.60397819,0.00041498,60]
[362398729,1748252200066,-472.75867158,0.00041498,120]
[362398730,1748252200091,-6588.30862,0.00041498,120]
[362398731,1748252200114,-227.88496645,0.00041498,120]
[362398732,1748252200138,-2517.253924,0.00041498,120]
[362398733,1748252200162,-1732.32905486,0.00041498,120]
[362398734,1748252200186,-3231.2333894,0.00041498,120]
[362398735,1748252200216,-1536.81333943,0.00041498,120]
[362398736,1748252200240,-216.68992996,0.00041498,120]
[362398737,1748252200263,-317.81980748,0.00041498,120]
[362398738,1748252200288,-539.62905306,0.00041498,120]
[362398739,1748252200313,-1321.67329935,0.00041498,120]
[362398740,1748252200339,-726.08067765,0.00041498,120]
[362398741,1748252200365,-1001.72421015,0.00041498,120]
[362398742,1748252200389,-164.26415259,0.00041498,120]
[362398743,1748252200413,-567.97460366,0.00041498,120]
[362398744,1748252200438,-159.35211763,0.00041498,60]
[362398745,1748252200462,-565.94659502,0.00041498,120]
[362398746,1748252200485,-1197.03710418,0.00041498,120]
[362398747,1748252200510,-1153.1654661,0.00041498,120]
[362398748,1748252200538,-3292.29844215,0.00041498,120]
[362398749,1748252200563,-1102.41784447,0.00041498,120]
[362398750,1748252200588,-2100.56334965,0.00041498,120]
[362398751,1748252200613,-984.08607438,0.00041498,120]
[362398752,1748252200638,-1162.27714878,0.00041498,120]
[362398753,1748252200662,-201435.13419831,0.00041498,60]
[362398754,1748252200687,-1839.92058623,0.00041498,120]
[362398755,1748252200710,-1139.72660643,0.00041498,120]
[362398756,1748252200733,-658.68984335,0.00041498,120]
[362398757,1748252200757,-2573.41356643,0.00041498,120]
[362398758,1748252200781,-381.36255763,0.00041498,120]
[362398759,1748252200808,-181.0560766,0.00041498,120]
[362398760,1748252200832,-1780.0119309,0.00041498,120]
[362398761,1748252200856,-756.0,0.00041498,120]
[362398762,1748252200882,-1133.3496702,0.00041498,120]
[362398763,1748252200905,-710.629787,0.00041498,120]
[362398764,1748252200928,-486.29601878,0.00041498,120]
[362398765,1748252200952,-313.38202927,0.00041498,120]
[362398766,1748252200976,-364.91595311,0.00041498,120]
[362398767,1748252201201,-2613.54912481,0.00041498,120]
[362398768,1748252201283,-3069.5019636,0.00041498,120]
[362398769,1748252201307,-160.78926704,0.00041498,120]
[362398770,1748252201331,-184.37766455,0.00041498,120]
[362398771,1748252201354,-1540.6457584,0.00041498,90]
[362398772,1748252201377,-594.33277668,0.00041498,120]
[362398773,1748252201401,-2106.00071623,0.00041498,120]
[362398774,1748252201426,-245.68387348,0.00041498,120]
[362398775,1748252201451,-452.00977149,0.00041498,60]
[362398776,1748252201476,-1578.5074624,0.00041498,120]
[362398777,1748252201498,-3014.44098332,0.00041498,120]
[362398778,1748252201521,-841.02049641,0.00041498,120]
[362398779,1748252201545,-2496.11,0.00041498,60]
[362398780,1748252201568,-1250.92100548,0.00041498,60]
[362398781,1748252201592,-1000.0,0.00041498,60]
[362398782,1748252201615,-10175.0,0.00041498,120]
[362398783,1748252201639,-747.427,0.00041498,120]
[362398784,1748252201662,-162.03908612,0.00041498,120]
[362398785,1748252210098,1262.9,0.00041498,120]
[362398786,1748252225204,500.0,0.00041498,120]
[362398787,1748252225234,300.0,0.00041498,120]
[362398788,1748252225603,1000.0,0.00041498,120]
[362398789,1748252225642,151.0,0.00041498,120]
[362398790,1748252225738,300.0,0.00041498,120]
[362398791,1748252225784,500.0,0.00041498,120]
[362398792,1748252225842,300.0,0.00041498,120]
[362398793,1748252225873,518.5,0.00041498,120]
[362398794,1748252226333,151.0,0.00041498,120]
[362398795,1748252226426,300.0,0.00041498,120]
[362398796,1748252226457,537.6845,0.00041498,120]
[362398797,1748252226491,300.0,0.00041498,120]
[362398798,1748252226755,1037.0,0.00041498,120]
[362398799,1748252226924,518.5,0.00041498,120]
[362398800,1748252226978,151.0,0.00041498,120]
[362398801,1748252227028,300.0,0.00041498,120]
[362398802,1748252227090,557.5788265,0.00041498,120]
[362398803,1748252227151,300.0,0.00041498,120]
[362398804,1748252227397,1075.369,0.00041498,120]
[362398805,1748252227613,537.6845,0.00041498,120]
[362398806,1748252227643,151.0,0.00041498,120]
[362398807,1748252227672,300.0,0.00041498,120]
[362398808,1748252227700,578.20924308,0.00041498,120]
[362398809,1748252227733,300.0,0.00041498,120]
[362398810,1748252228064,1115.157653,0.00041498,120]
[362398811,1748252228236,557.5788265,0.00041498,120]
[362398812,1748252228321,151.0,0.00041498,120]
[362398813,1748252228354,300.0,0.00041498,120]
[362398814,1748252228382,599.60298507,0.00041498,120]
[362398815,1748252228411,300.0,0.00041498,120]
[362398816,1748252228678,1156.41848616,0.00041498,120]
[362398817,1748252228863,578.20924308,0.00041498,120]
[362398818,1748252229004,621.78829552,0.00041498,120]
[362398819,1748252229034,300.0,0.00041498,120]
[362398820,1748252229486,1199.20597015,0.00041498,120]
[362398821,1748252229519,599.60298507,0.00041498,120]
[362398822,1748252229667,644.79446246,0.00041498,120]
[362398823,1748252230169,621.78829552,0.00041498,120]
[362398824,1748252230293,644.79446246,0.00041498,120]
[362398825,1748252230835,644.79446246,0.00041498,120]
[362398826,1748252231480,668.65185757,0.00041498,120]
[362398827,1748252232230,151.0,0.00041498,120]
[362398828,1748252232259,693.3919763,0.00041498,120]
[362398829,1748252232907,156.587,0.00041498,120]
[362398830,1748252233563,162.380719,0.00041498,120]
[362398831,1748252234203,168.3888056,0.00041498,120]
[362398832,1748252235021,174.61919141,0.00041498,120]
[362398833,1748252235057,200.0,0.00041498,120]
[362398834,1748252235449,174.61919141,0.00041498,120]
[362398835,1748252235521,207.4,0.00041498,120]
[362398836,1748252236151,215.0738,0.00041498,120]
[362398837,1748252236797,223.0315306,0.00041498,120]
[362398838,1748252237452,231.28369723,0.00041498,120]
[362398839,1748252238100,239.84119403,0.00041498,120]
[362398840,1748252238856,248.71531821,0.00041498,120]
[362398841,1748252238888,151.0,0.00041498,120]
[362398842,1748252239490,257.91778498,0.00041498,120]
[362398843,1748252240676,267.46074303,0.00041498,120]
[362398844,1748252241313,277.35679052,0.00041498,120]
[362398845,1748252241978,287.61899177,0.00041498,120]
[362398846,1748252242596,298.26089446,0.00041498,120]
[362398847,1748252243256,309.29654756,0.00041498,120]
[362398848,1748252243936,320.74051982,0.00041498,120]
[362398849,1748252244606,332.60791905,0.00041498,120]
[362398850,1748252245395,344.91441206,0.00041498,120]
[362398851,1748252246129,357.6762453,0.00041498,120]
[362398852,1748252246785,370.91026638,0.00041498,120]
[362398853,1748252247447,384.63394623,0.00041498,120]
[362398854,1748252248082,384.63394623,0.00041498,120]
[362398855,1748252251483,151.0,0.00041498,120]
[362398856,1748252252151,156.587,0.00041498,120]
[362398857,1748252252803,162.380719,0.00041498,120]
[362398858,1748252253963,168.3888056,0.00041498,120]
[362398859,1748252254592,174.61919141,0.00041498,120]
[362398860,1748252255735,181.08010149,0.00041498,120]
[362398861,1748252256401,187.78006525,0.00041498,120]
[362398862,1748252257047,194.72792766,0.00041498,120]
[362398863,1748252257699,201.93286099,0.00041498,120]
[362398864,1748252258333,209.40437684,0.00041498,120]
[362398865,1748252259513,217.15233878,0.00041498,120]
[362398866,1748252260290,225.18697532,0.00041498,120]
[362398867,1748252260925,233.51889341,0.00041498,120]
[362398868,1748252261555,242.15909246,0.00041498,120]
[362398869,1748252262178,251.11897888,0.00041498,120]
[362398870,1748252262836,260.4103811,0.00041498,120]
[362398871,1748252263640,260.4103811,0.00041498,120]
[362398872,1748252285597,860.86,0.00025368,120]
[362398873,1748252298913,84745.41,0.00041498,60]
[362398874,1748252392537,4413.40025319,0.0004148,40]
[362398875,1748252393817,500.0,0.0004148,40]
[362398876,1748252472603,100384.0,0.0004148,40]
[362398877,1748252508134,380.49639428,0.0004148,120]
[362398878,1748252525849,200.0,0.0004148,120]
[362398879,1748252526544,151.0,0.0004148,40]
[362398880,1748252526575,207.4,0.0004148,120]
[362398881,1748252527741,215.0738,0.0004148,120]
[362398882,1748252528423,223.0315306,0.0004148,120]
[362398883,1748252528606,200.0,0.0004148,120]
[362398884,1748252529107,231.28369723,0.0004148,120]
[362398885,1748252529847,239.84119403,0.0004148,120]
[362398886,1748252530067,292.09850217,0.0004148,120]
[362398887,1748252530574,248.71531821,0.0004148,120]
[362398888,1748252531199,257.91778498,0.0004148,120]
[362398889,1748252531878,267.46074303,0.0004148,120]
[362398890,1748252532539,277.35679052,0.0004148,120]
[362398891,1748252533173,287.61899177,0.0004148,120]
[362398892,1748252533806,298.26089446,0.0004148,120]
[362398893,1748252534575,309.29654756,0.0004148,120]
[362398894,1748252535103,320.74051982,0.0004148,120]
[362398895,1748252535759,332.60791905,0.0004148,120]
[362398896,1748252536584,344.91441206,0.0004148,120]
[362398897,1748252537235,357.6762453,0.0004148,120]
[362398898,1748252537906,370.91026638,0.0004148,120]
[362398899,1748252538562,384.63394623,0.0004148,120]
[362398900,1748252539239,384.63394623,0.0004148,120]
[362398901,1748252579720,20000.0,0.0004148,40]
[362398902,1748252601206,500.0,0.00025587,120]
[362398903,1748252613763,29926.0,0.0004148,40]
[362398904,1748252636284,195.14,0.00013699,2]
[362398906,1748252733083,-250.0,0.00016612,2]
[362398907,1748252736018,-419.77112236,0.00016612,2]
[362398908,1748252738147,-168.83887764,0.00016612,2]
[362398909,1748252807324,1000.0,0.00041427,120]
[362398910,1748252827900,200.0,0.00041427,120]
[362398911,1748252828548,207.4,0.00041427,120]
[362398912,1748252829220,215.0738,0.00041427,120]
[362398913,1748252829884,223.0315306,0.00041427,120]
[362398914,1748252830455,3150.36393636,0.00041427,120]
[362398915,1748252830565,231.28369723,0.00041427,120]
[362398916,1748252831274,239.84119403,0.00041427,120]
[362398917,1748252831935,248.71531821,0.00041427,120]
[362398918,1748252832545,257.91778498,0.00041427,120]
[362398922,1748252833177,267.46074303,0.00041427,120]
[362398926,1748252834087,277.35679052,0.00041427,120]
[362398927,1748252835040,287.61899177,0.00041427,120]
[362398928,1748252835677,298.26089446,0.00041427,120]
[362398929,1748252836842,309.29654756,0.00041427,120]
[362398930,1748252837533,320.74051982,0.00041427,120]
[362398931,1748252838230,332.60791905,0.00041427,120]
[362398932,1748252838941,344.91441206,0.00041427,120]
[362398933,1748252839636,357.6762453,0.00041427,120]
[362398934,1748252840269,370.91026638,0.00041427,120]
[362398935,1748252840916,384.63394623,0.00041427,120]
[362398936,1748252841554,384.63394623,0.00041427,120]
[362398937,1748252845994,9000.0,0.00041427,120]
[362398938,1748252846122,29940.0003693,0.00041427,40]
[362398939,1748252894399,172.07,0.00014793,2]
[362398940,1748252912051,3039.0,0.00041427,120]
[362398959,1748253031611,-207.0,0.00016898,2]
[362398960,1748253031620,-250.0,0.00017573,2]
[362398961,1748253031630,-347.61051642,0.0001834,2]
[362398962,1748253031642,-41.11737104,0.00018439,2]
[362398963,1748253031654,-1158.88262896,0.00018439,2]
[362398964,1748253031664,-300.0,0.0001844,2]
[362398965,1748253031673,-300.0,0.0001844,2]
[362398966,1748253031683,-23900.0,0.00018441,2]
[362398967,1748253031693,-860.86,0.0001845,2]
[362398968,1748253031703,-523.6277568,0.00018462,2]
[362398969,1748253031714,-1000.0,0.00018492,2]
[362398970,1748253031729,-1243.37,0.00018492,2]
[362398971,1748253031740,-250.0,0.00018588,2]
[362398972,1748253031750,-838.61,0.00018876,2]
[362398973,1748253031760,-344.04,0.00018929,2]
[362398974,1748253031769,-344.04,0.00018934,2]
[362398975,1748253031778,-344.04,0.00018939,2]
[362398976,1748253031788,-344.04,0.00018944,2]
[362398977,1748253031798,-344.04,0.00018949,2]
[362398978,1748253031807,-344.04,0.00018954,2]
[362398979,1748253031820,-344.04,0.00018959,2]
[362398980,1748253031830,-344.04,0.00018964,2]
[362398981,1748253031845,-344.04,0.00018969,2]
[362398982,1748253031855,-344.04,0.00018974,2]
[362398983,1748253031864,-344.04,0.00018979,2]
[362398984,1748253031874,-344.04,0.00018984,2]
[362398985,1748253031885,-164.76,0.00018986,2]
[362398986,1748253031895,-344.04,0.00018989,2]
[362398988,1748253031904,-344.04,0.00018994,2]
[362398990,1748253031914,-344.04,0.00018999,2]
[362398992,1748253031923,-344.04,0.00019004,2]
[362398993,1748253031933,-344.04,0.00019009,2]
[362398994,1748253031942,-344.04,0.00019014,2]
[362398996,1748253031952,-344.04,0.00019019,2]
[362398998,1748253031961,-344.04,0.00019024,2]
[362398999,1748253031971,-1852.42,0.00019053,2]
[362399001,1748253031980,-347.6105164,0.00019069,2]
[362399003,1748253031989,-151.433267,0.00019178,2]
[362399004,1748253031999,-154.611546,0.00019178,2]
[362399006,1748253032008,-161.289869,0.00019178,2]
[362399008,1748253032018,-186.379405,0.00019178,2]
[362399010,1748253032029,-155.465632,0.00019178,2]
[362399011,1748253032039,-155.465632,0.00019178,2]
[362399013,1748253032048,-154.385501,0.00019178,2]
[362399015,1748253032057,-183.76283,0.00019178,2]
[362399017,1748253032066,-155.110847,0.00019178,2]
[362399018,1748253032077,-166.307776,0.00019178,2]
[362399020,1748253032088,-155.316172,0.00019178,2]
[362399022,1748253032097,-186.379405,0.00019178,2]
[362399024,1748253032107,-169.398209,0.00019178,2]
[362399026,1748253032117,-162.213627,0.00019178,2]
[362399027,1748253032127,-151.433267,0.00019178,2]
[362399029,1748253032136,-161.289869,0.00019178,2]
[362399031,1748253032145,-600.0,0.000193,7]
[362399033,1748253032154,-200.0,0.00019344,2]
[362399034,1748253032163,-155.465632,0.00019369,2]
[362399036,1748253032174,-155.110847,0.00019369,2]
[362399038,1748253032183,-1200.0,0.000194,7]
[362399040,1748253032192,-5066.0,0.000195,2]
[362399042,1748253032201,-1800.0,0.000195,7]
[362399044,1748253032211,-392.457424,0.00019599,2]
[362399045,1748253032221,-2400.0,0.000196,7]
[362399047,1748253032230,-200.0,0.00019614,2]
[362399049,1748253032240,-3000.0,0.000197,7]
[362399051,1748253032249,-161.289869,0.00019726,2]
[362399052,1748253032258,-155.465632,0.00019726,2]
[362399054,1748253032268,-155.465632,0.00019726,2]
[362399056,1748253032277,-155.110847,0.00019726,2]
[362399058,1748253032287,-166.307776,0.00019726,2]
[362399059,1748253032296,-347.6105164,0.00019797,2]
[362399060,1748253032306,-600.0,0.000198,7]
[362399061,1748253032315,-395.8445,0.0001989,2]
[362399062,1748253032325,-1690.91727049,0.00019894,2]
[362399063,1748253032335,-1690.91727049,0.00019895,2]
[362399064,1748253032345,-162.76980149,0.00019895,2]
[362399065,1748253032355,-5000.0,0.00019895,2]
[362399066,1748253032364,-1690.91727049,0.00019895,2]
[362399067,1748253032374,-744.8028,0.00019896,2]
[362399068,1748253032383,-1690.91727049,0.00019896,2]
[362399070,1748253032392,-1690.91727049,0.00019897,2]
[362399072,1748253032402,-159.26919319,0.00019897,2]